[Event "Polish Youth Ekstraliga 2022"]
[Site "Lublin"]
[Date "2022.06.25"]
[Round "1.1"]
[White "Kazmierowski, Tymon"]
[Black "Czopor, Maciej"]
[Result "0-1"]
[ECO "A50"]
[WhiteElo "2020"]
[BlackElo "2425"]
[Annotator "TA"]
[PlyCount "92"]
[EventDate "2022.06.24"]
[EventType "team-tourn"]
[EventCountry "POL"]
[SourceTitle "playchess.com"]
[Source "ChessBase"]
[SourceQuality "1"]
[TimeControl "40/5400+30:1800+30"]

{[%evp 9,92,-1,44,19,54,15,62,58,76,78,66,77,66,40,105,103,100,47,62,17,14,0,0,0,0,-13,-12,-116,-111,-139,0,0,10,-195,-142,-379,-370,-387,-365,-325,-324,-427,-386,-368,0,-635,-494,-479,-448,-497,-370,-535,-537,-677,-518,-494,-478,-813,-668,-670,-619,-588,-452,-382,-444,-678,-216,-951,-885,-902,-876,-1275,-1208,-995,-973,-998,-1000,-1000,-1000,-993,-987,-980,-960,-1759,-662]} 1. d4 {[%emt 0:00:02]} Nf6 {[%emt 0:00:07]} 2. c4 {[%emt 0:00:07]} b6 {[%emt 0:00:02]} 3. Nc3 {[%emt 0:00:13]} Bb7 {[%emt 0:00:04]} 4. d5 {[%emt 0:00:26]} e6 {[%emt 0:14:24]} 5. a3 {[%emt 0:00:10]} Qe7 {[%emt 0:08:13]} 6. Nf3 {[%emt 0:09:23] [#] A50: Queen's Fianchetto Defence (1 d4 Nf6 2 c4 b6).} c6 $146 {[%emt 0:08:55][%cal Rc6d5]} ({Predecessor:} 6... exd5 7. cxd5 Ne4 8. e3 g6 9. Qd4 Nf6 10. e4 Bg7 11. Bd3 c5 12. Qe3 O-O 13. h3 {1-0 (54) Han Wong,I (2098)-Smith,H (2057) Dresden 2008}) 7. dxe6 {[%emt 0:08:37]} (7. Bg5 {is more complex.} exd5 8. cxd5 h6 9. Bxf6 Qxf6 10. e3) 7... fxe6 {[%emt 0:01:19]} (7... dxe6 $11 {deserves consideration.} 8. e4 e5) 8. e4 $14 {[%emt 0:08:17] White is slightly better.} e5 {[%emt 0:00:18]} 9. Bd3 {[%emt 0:01:44]} g6 {[%emt 0:03:58]} 10. O-O {[%emt 0:01:38]} Bg7 {[%emt 0:00:14]} 11. Be3 {[%emt 0:15:55][%cal Oc4c5]} Na6 {[%emt 0:07:53] Against c5} ({Better is} 11... d6 $14) 12. b4 $1 $16 {[%emt 0:05:47]} Nc7 {[%emt 0:06:02]} 13. Qd2 {[%emt 0:13:41]} (13. c5 $16) 13... d6 {[%emt 0:11:41]} 14. Rfd1 {[%emt 0:05:31][%cal Oc4c5]} O-O {[%emt 0:02:34]} 15. Bc2 {[%emt 0:01:52]} Rad8 {[%emt 0:01:58]} 16. Bb3 {[%emt 0:01:11] Hoping for c5+.} Kh8 {[%emt 0:00:33]} 17. Qc2 {[%emt 0:03:09]} Ne6 {[%emt 0:04:28]} 18. h3 {[%emt 0:04:48]} (18. c5 $11) 18... Nh5 $1 $17 {[%emt 0:03:53][%cal Of8f3]} 19. c5 {[%emt 0:06:18] [#]} bxc5 {[%emt 0:06:53]} ({Black should try} 19... Rxf3 $1 $17 {[%mdl 512]} 20. cxd6 (20. gxf3 Nd4 $19) 20... Qf6 21. gxf3 Nd4 22. Bxd4 exd4) 20. bxc5 $11 {[%emt 0:01:41]} Rxf3 {[%emt 0:04:11]} 21. gxf3 $2 {[%emt 0:01:23]} (21. cxd6 $11 {and White has nothing to worry.} Qf6 22. Bxe6 (22. gxf3 Nd4 $17) 22... Rxe3 23. Na4) 21... Nef4 {[%emt 0:06:18]} (21... Nd4 $19 22. cxd6 Rxd6 23. Bxd4 exd4) 22. Bxf4 $2 {[%emt 0:01:01]} (22. cxd6 $17 Qg5+ 23. Kf1 Ba6+ 24. Ke1) 22... Nxf4 $19 {[%emt 0:00:16]} 23. Ne2 {[%emt 0:00:15]} Qg5+ {[%emt 0:01:10]} 24. Ng3 {[%emt 0:00:06]} Nxh3+ {[%emt 0:01:06]} ({And not} 24... Qh4 25. Bc4 $15) 25. Kf1 {[%emt 0:00:53]} d5 {[%emt 0:00:01]} 26. exd5 {[%emt 0:01:05] [#]} cxd5 {[%emt 0:00:08]} ({Black should play} 26... Rf8 $1 $19 {[%cal Rf8f3]} 27. dxc6 Bxc6) 27. Qe2 {[%emt 0:02:59][%mdl 8192]} (27. Bxd5 $11 Bxd5 28. c6) 27... Qf6 {[%emt 0:00:55] aiming for ...Ba6.} 28. c6 {[%emt 0:01:33]} Qxc6 {[%emt 0:00:58] Strongly threatening ...Ba6.} 29. Rac1 {[%emt 0:00:36]} Qe6 {[%emt 0:01:49]} 30. Bc4 {[%emt 0:01:11]} (30. Rc7 {was called for.} Ba6 31. Bc4) 30... Nf4 {[%emt 0:01:56]} 31. Qb2 {[%emt 0:00:20]} Rd7 {[%emt 0:01:58]} 32. Bb5 {[%emt 0:01:08]} Rf7 {[%emt 0:00:08]} 33. Qd2 {[%emt 0:01:18]} (33. Qb3 $142) 33... h5 {[%emt 0:00:24][%cal Bh7h5,Bh5h4,Bh4h3,Bh3h2][%mdl 32]} 34. Qa5 {[%emt 0:00:32]} Kh7 35. Rc7 {[%emt 0:00:45]} h4 {[%emt 0:02:35]} 36. Rxf7 {[%emt 0:00:13]} Qxf7 {[%emt 0:00:01] Chess con chili.} 37. Ne2 {[%emt 0:00:23]} (37. Qxa7 $142 hxg3 38. fxg3) 37... Nxe2 $2 {[%emt 0:00:27]} (37... h3 38. Qd8 Nh5) 38. Kxe2 $2 {[%emt 0:00:29]} (38. Bxe2 d4 39. Qd8) 38... d4 {[%emt 0:00:10] Threatens to win with ...h3. Black is clearly winning.} 39. Rd3 {[%emt 0:00:12]} h3 {[%emt 0:00:13] And now ...h2 would win.} 40. Qe1 {[%emt 0:00:00]} Qf4 {[%emt 0:00:00]} 41. Qf1 {[%emt 0:21:17]} h2 {[%emt 0:05:19] ...e4 is the strong threat.} 42. Qh3+ {[%emt 0:00:24]} Qh6 {[%emt 0:00:01]} 43. Qxh6+ {[%emt 0:00:25]} Bxh6 {[%emt 0:00:01] This bishop pair is nice.} 44. Rd1 {[%emt 0:00:09]} Bf4 {[%emt 0:00:16]} 45. Bd3 {[%emt 0:01:04]} Kh6 {[%emt 0:00:46]} 46. Be4 {[%emt 0:01:20]} Bc8 {[%emt 0:00:03] Weighted Error Value: White=0.98/Black=0.50} (46... Ba6+ $142 47. Bd3 Bc8) 0-1

[Event "Polish Youth Ekstraliga 2022"]
[Site "Lublin"]
[Date "2022.06.25"]
[Round "1.2"]
[White "Luberanski, Jakub"]
[Black "Grzadka, Artur"]
[Result "0-1"]
[ECO "E33"]
[WhiteElo "2241"]
[BlackElo "1718"]
[Annotator "TA"]
[PlyCount "90"]
[EventDate "2022.06.24"]
[EventType "team-tourn"]
[EventCountry "POL"]
[SourceTitle "playchess.com"]
[Source "ChessBase"]
[SourceQuality "1"]
[TimeControl "40/5400+30:1800+30"]

{[%evp 11,90,38,45,33,40,45,56,31,36,28,34,25,27,7,15,22,43,28,47,-1,-5,-5,13,0,33,25,19,28,29,16,31,8,17,18,15,7,112,115,113,99,105,117,118,119,94,95,105,96,99,-440,-116,-114,-104,-104,-97,-93,0,-111,0,-417,-410,-403,-379,-493,0,0,0,0,0,-775,-766,-868,-868,-29978,-29979,-29992,-29993,-29993,-29990,-29994,-29995]} 1. d4 {[%emt 0:00:02]} Nf6 {[%emt 0:00:07]} 2. c4 {[%emt 0:00:04]} e6 {[%emt 0:00:07]} 3. Nc3 {[%emt 0:00:05]} Bb4 {[%emt 0:00:06]} 4. Qc2 {[%emt 0:00:03]} Nc6 {[%emt 0:00:11]} 5. Nf3 {[%emt 0:00:21]} d6 {[%emt 0:00:21]} 6. Bd2 {[%emt 0:01:10]} Qe7 {[%emt 0:01:27]} 7. a3 {[%emt 0:01:22] E33: Nimzo-Indian: Classical: 4...Nc6.} Bxc3 {[%emt 0:00:08]} 8. Bxc3 {[%emt 0:00:03]} a5 {[%emt 0:00:09]} 9. e3 {[%emt 0:01:21] White is slightly better.} e5 {[%emt 0:04:28]} 10. dxe5 {[%emt 0:04:35]} dxe5 {[%emt 0:00:07]} 11. Be2 {[%emt 0:00:39]} O-O {[%emt 0:05:15]} 12. b3 {[%emt 0:03:33]} Bg4 {[%emt 0:08:19]} 13. O-O {[%emt 0:00:29]} Rad8 {[%emt 0:17:43] [#]} 14. Rfb1 $146 {[%emt 0:08:22]} (14. h3 {is more complex.} Bh5 15. Nxe5 Nxe5 16. Bxh5 Nxh5 17. Qf5) ({Predecessor:} 14. h3 Bh5 15. Rfd1 Rxd1+ 16. Bxd1 Rd8 17. Be2 Nd7 18. Nxe5 Ncxe5 19. Bxh5 Nc5 20. Be2 {1-0 (36) Shipov,S (2591)-Bartel,M (2569) Playchess.com INT 2006}) 14... Bh5 {[%emt 0:14:19] [#]} 15. Rb2 {[%emt 0:18:50]} (15. Nxe5 $1 $14 Nxe5 16. Bxh5) 15... Bg6 $11 {[%emt 0:02:38]} 16. Qc1 {[%emt 0:00:10]} Ne4 {[%emt 0:08:25]} 17. Be1 {[%emt 0:01:40]} Ng5 {[%emt 0:07:27]} 18. Nxg5 {[%emt 0:15:05]} Qxg5 {[%emt 0:00:07]} 19. b4 {[%emt 0:00:22]} axb4 {[%emt 0:03:29]} 20. axb4 {[%emt 0:00:05]} e4 {[%emt 0:05:01]} (20... Be4 {looks sharper.} 21. g3 Ne7 22. b5 Ng6) 21. Bc3 {[%emt 0:01:19]} Bh5 {[%emt 0:02:45]} 22. Bxh5 {[%emt 0:04:34]} Qxh5 {[%emt 0:00:01]} 23. Rd2 {[%emt 0:14:59]} Ne5 {[%emt 0:05:51]} (23... Rxd2 $11 24. Qxd2 Rd8) 24. Ra5 $16 {[%emt 0:05:13]} Rxd2 {[%emt 0:12:15]} 25. Qxd2 {[%emt 0:06:41]} (25. Bxd2 b6 26. Ra1 Nd3 $17) 25... Nf3+ {[%emt 0:00:08]} 26. gxf3 {[%emt 0:00:04]} Qg6+ {[%emt 0:00:08]} 27. Kf1 {[%emt 0:00:18]} exf3 {[%emt 0:01:00]} 28. Qd1 $1 {[%emt 0:03:51]} b6 {[%emt 0:01:32]} 29. Rd5 $1 {[%emt 0:03:29]} (29. Ra7 $6 Qg2+ 30. Ke1 Qg1+ 31. Kd2 Qxf2+ 32. Kc1 Qg2 $11) 29... c6 {[%emt 0:00:34]} 30. Re5 $2 {[%emt 0:03:44][%mdl 8192]} (30. Rd3 $16 {and life is bright.}) 30... Qg2+ $2 {[%emt 0:00:37]} (30... f6 $1 $19 {[%cal Rf6e5]} 31. Re7 (31. Re6 $2 Qg2+ 32. Ke1 Qg1+ 33. Kd2 Qxf2+ 34. Kc1 Qg2 $19) 31... Qg2+ 32. Ke1 Qg1+ 33. Kd2 Qxf2+ 34. Kc1 Qg2) 31. Ke1 $17 {[%emt 0:00:05]} Qg1+ {[%emt 0:00:40]} 32. Kd2 {[%emt 0:00:04]} Rd8+ {[%emt 0:00:09][%cal Bf8d8,Bd8a8,Ba8a3][%mdl 32]} 33. Bd4 {[%emt 0:00:10]} Qxh2 {[%emt 0:00:25] Black is more active.} ({Better is} 33... Qxf2+ $17 34. Kd3 Qxh2) 34. Rf5 {[%emt 0:02:54]} (34. Kc1 $1 $11 {was the only way to keep the balance.} Qxf2 35. c5) 34... Qxf2+ {[%emt 0:00:25]} ({Black should try} 34... g6 $1 $17 35. Rxf3 c5) 35. Kc3 $2 {[%emt 0:00:29][%mdl 8192] [#]} (35. Kd3 $11) 35... Ra8 $1 $19 {[%emt 0:00:54] White must now prevent ...Ra3+.} ({And not} 35... Qa2 36. Qxf3 Qa3+ 37. Kc2 Qa4+ 38. Kc1 Qa3+ 39. Kc2 Qa4+ 40. Kc1 Qa3+ 41. Kc2 $11) 36. Kd3 {[%emt 0:01:23][%cal Bc3d3,Bd3e4,Be4f4][%mdl 32]} Ra3+ {[%emt 0:00:17]} 37. Ke4 {[%emt 0:00:39] [#]} Qe2 $2 {[%emt 0:00:19]} (37... g6 $1 $19 38. Rf6 (38. Rxf3 $2 Qh4+ 39. Ke5 Qe7+ 40. Kf4 c5 $19) 38... Qh4+ 39. Ke5 (39. Rf4 f5+ 40. Kxf3 Qh5+ 41. Kg3 Qxd1 42. Rf2 Qg4+ 43. Kh2 Rd3 44. Ra2 f4 45. Ra8+ Kf7 46. Ra7+ Ke6) 39... Qg3+ 40. Ke4 Qg4+ 41. Ke5 (41. Rf4 $2 f5+ 42. Ke5 Qg5 $19) 41... Ra7) 38. Qg1 $1 $40 {[%emt 0:00:21][%csl Gd4][%cal Rg1g7][%mdl 128] White has some attack.} Qc2+ {[%emt 0:00:29]} 39. Kf4 {[%emt 0:00:06][%csl Gd4][%cal Rg1g7]} g6 {[%emt 0:00:31][%cal Bg7g6,Bg6g5][%mdl 32] Chess con chili.} 40. Re5 {[%emt 0:00:00][%mdl 8192]} (40. Rf6 $11) 40... f6 $19 {[%emt 0:00:00]} 41. Re8+ {[%emt 0:19:53]} Kf7 {[%emt 0:02:42] ( -> ...Qf5+)} 42. Re4 {[%emt 0:00:51]} Qg2 {[%emt 0:03:43] Black mates.} 43. Qd1 {[%emt 0:00:11]} g5+ {[%emt 0:04:46]} 44. Kf5 {[%emt 0:00:06]} Qh3+ {[%emt 0:00:33]} 45. Rg4 {[%emt 0:00:33]} h5 {[%emt 0:00:10][%mdl 64] Pin.  Weighted Error Value: White=0.85/Black=0.48} 0-1

[Event "Polish Youth Ekstraliga 2022"]
[Site "Lublin"]
[Date "2022.06.25"]
[Round "1.3"]
[White "Przybylski, Jan"]
[Black "Jaworski, Tymon"]
[Result "1-0"]
[ECO "C47"]
[WhiteElo "1694"]
[BlackElo "1628"]
[Annotator "NA RC"]
[PlyCount "69"]
[EventDate "2022.06.24"]
[EventType "team-tourn"]
[EventCountry "POL"]
[SourceTitle "playchess.com"]
[Source "ChessBase"]
[SourceQuality "1"]
[TimeControl "40/5400+30:1800+30"]

1. e4 {[%emt 0:00:03]} e5 {[%emt 0:00:10]} 2. Nf3 {[%emt 0:00:05]} Nc6 {[%emt 0:00:08]} 3. Nc3 {[%emt 0:00:06]} Nf6 {[%emt 0:02:30]} 4. a3 {[%emt 0:00:30]} d5 {[%emt 0:07:52]} 5. Bb5 {[%emt 0:00:25]} d4 {[%emt 0:01:19]} 6. Ne2 {[%emt 0:00:33]} Bd6 {[%emt 0:04:14]} 7. d3 {[%emt 0:00:52]} O-O {[%emt 0:01:03]} 8. Bg5 {[%emt 0:00:45]} a6 {[%emt 0:04:32]} 9. Bxc6 {[%emt 0:06:55]} bxc6 {[%emt 0:00:11]} 10. c3 {[%emt 0:03:59]} c5 {[%emt 0:04:49]} 11. O-O {[%emt 0:01:10]} Qe7 {[%emt 0:05:37]} 12. Rc1 {[%emt 0:05:43]} Qe6 {[%emt 0:03:21]} 13. b4 {[%emt 0:09:24]} dxc3 {[%emt 0:04:13]} 14. bxc5 {[%emt 0:06:23]} Bxc5 {[%emt 0:01:59]} 15. Rxc3 {[%emt 0:00:39]} Bb6 {[%emt 0:02:17]} 16. Qc2 {[%emt 0:14:03]} Bb7 {[%emt 0:04:12]} 17. Nc1 {[%emt 0:04:19]} Nd7 {[%emt 0:05:08]} 18. Nb3 {[%emt 0:00:52]} f5 {[%emt 0:02:18]} 19. Be3 {[%emt 0:04:39]} fxe4 {[%emt 0:09:56]} 20. dxe4 {[%emt 0:04:10]} Qg4 {[%emt 0:05:56]} 21. Nfd2 {[%emt 0:01:55]} Nf6 {[%emt 0:06:31]} 22. f3 {[%emt 0:08:49]} Qe6 {[%emt 0:10:16]} 23. Rc1 {[%emt 0:04:07]} Rac8 {[%emt 0:02:42]} 24. a4 {[%emt 0:01:13]} Rfd8 {[%emt 0:04:28]} 25. a5 {[%emt 0:01:12]} Bxe3+ {[%emt 0:02:05]} 26. Rxe3 {[%emt 0:00:22]} c5 {[%emt 0:00:15]} 27. Rc3 {[%emt 0:01:24]} Nd7 {[%emt 0:00:59]} 28. Nc4 {[%emt 0:00:51]} Bc6 {[%emt 0:00:40]} 29. Rd1 {[%emt 0:00:37]} Bb5 {[%emt 0:00:54]} 30. Nd6 {[%emt 0:01:41]} Rc6 {[%emt 0:03:10]} 31. Nxb5 {[%emt 0:01:30]} axb5 {[%emt 0:00:28]} 32. Nxc5 {[%emt 0:00:19]} Qe7 {[%emt 0:01:07]} 33. Nxd7 {[%emt 0:00:47]} Rxc3 {[%emt 0:00:33]} 34. Qxc3 {[%emt 0:00:09]} Rxd7 {[%emt 0:00:19]} 35. Qc8+ {[%emt 0:00:07]} 1-0

[Event "Polish Youth Ekstraliga 2022"]
[Site "Lublin"]
[Date "2022.06.25"]
[Round "1.4"]
[White "Ochedzan, Filip"]
[Black "Terkiewicz, Bruno"]
[Result "0-1"]
[ECO "C18"]
[WhiteElo "1873"]
[BlackElo "1320"]
[Annotator "NA RC"]
[PlyCount "80"]
[EventDate "2022.06.24"]
[EventType "team-tourn"]
[EventCountry "POL"]
[SourceTitle "playchess.com"]
[Source "ChessBase"]
[SourceQuality "1"]
[TimeControl "40/5400+30:1800+30"]

1. e4 {[%emt 0:00:04]} e6 {[%emt 0:00:02]} 2. d4 {[%emt 0:00:12]} d5 {[%emt 0:00:02]} 3. Nc3 {[%emt 0:00:26]} Bb4 {[%emt 0:00:02]} 4. e5 {[%emt 0:00:45]} c5 {[%emt 0:00:01]} 5. a3 {[%emt 0:00:52]} Bxc3+ {[%emt 0:00:02]} 6. bxc3 {[%emt 0:00:13]} Ne7 {[%emt 0:00:03]} 7. Bd2 {[%emt 0:16:57]} Qc7 {[%emt 0:07:46]} 8. Qg4 {[%emt 0:11:05]} cxd4 {[%emt 0:05:13]} 9. cxd4 {[%emt 0:02:07]} Qxc2 {[%emt 0:05:01]} 10. Rc1 {[%emt 0:02:53]} Qg6 {[%emt 0:00:16]} 11. Qf3 {[%emt 0:04:34]} Qf5 {[%emt 0:16:37]} 12. Qc3 {[%emt 0:13:12]} Nbc6 {[%emt 0:06:12]} 13. f3 {[%emt 0:03:36]} f6 {[%emt 0:09:12]} 14. g4 {[%emt 0:04:46]} Qg6 {[%emt 0:00:14]} 15. Bd3 {[%emt 0:00:25]} Qf7 {[%emt 0:00:10]} 16. f4 {[%emt 0:06:22]} h5 {[%emt 0:09:24]} 17. g5 {[%emt 0:02:32]} f5 {[%emt 0:00:16]} 18. Ne2 {[%emt 0:01:02]} O-O {[%emt 0:03:06]} 19. Rb1 {[%emt 0:04:11]} b6 {[%emt 0:01:58]} 20. h4 {[%emt 0:01:35]} g6 {[%emt 0:03:15]} 21. Kf2 {[%emt 0:01:09]} Bd7 {[%emt 0:01:49]} 22. a4 {[%emt 0:01:53]} Na5 $11 {[%emt 0:08:32]} 23. Qb4 {[%emt 0:03:28]} Nec6 {[%emt 0:02:07]} 24. Qb2 Rfc8 {[%emt 0:01:07]} 25. Rhc1 {[%emt 0:01:11]} Be8 {[%emt 0:04:15]} 26. Rc2 {[%emt 0:03:05]} Qb7 {[%emt 0:01:35]} 27. Rbc1 {[%emt 0:01:20]} Nc4 28. Bxc4 {[%emt 0:00:23]} dxc4 {[%emt 0:03:17]} 29. Rxc4 {[%emt 0:00:25]} Ne7 {[%emt 0:01:19]} 30. Bb4 {[%emt 0:03:58]} Nd5 {[%emt 0:00:43]} 31. Bd6 {[%emt 0:00:25]} Qa6 {[%emt 0:01:33]} 32. Rxc8 {[%emt 0:04:25]} Rxc8 {[%emt 0:00:02]} 33. Rxc8 {[%emt 0:00:02]} Qxc8 {[%emt 0:00:11]} 34. Qb3 {[%emt 0:04:44]} Qa6 {[%emt 0:00:24]} 35. Nc3 {[%emt 0:00:19]} Qd3 {[%emt 0:00:52]} 36. Ba3 {[%emt 0:02:14]} Qxd4+ {[%emt 0:00:19]} 37. Kg2 {[%emt 0:00:17]} Qxc3 {[%emt 0:00:14]} 38. Qa2 {[%emt 0:00:16]} Qc2+ {[%emt 0:00:25]} 39. Qxc2 {[%emt 0:00:09]} Ne3+ {[%emt 0:00:08]} 40. Kf3 {[%emt 0:00:00]} Nxc2 {[%emt 0:00:00]} 0-1

[Event "Polish Youth Ekstraliga 2022"]
[Site "Lublin"]
[Date "2022.06.25"]
[Round "1.5"]
[White "Bukala, Weronika"]
[Black "Lochina, Justyna"]
[Result "1-0"]
[ECO "B83"]
[WhiteElo "1827"]
[BlackElo "1672"]
[Annotator "NA RC"]
[PlyCount "115"]
[EventDate "2022.06.24"]
[EventType "team-tourn"]
[EventCountry "POL"]
[SourceTitle "playchess.com"]
[Source "ChessBase"]
[SourceQuality "1"]
[TimeControl "40/5400+30:1800+30"]

1. e4 {[%emt 0:00:05]} c5 {[%emt 0:00:05]} 2. Nf3 {[%emt 0:00:35]} e6 {[%emt 0:00:22]} 3. d4 {[%emt 0:00:06]} cxd4 {[%emt 0:00:15]} 4. Nxd4 {[%emt 0:00:06]} Nc6 {[%emt 0:00:38]} 5. Nc3 {[%emt 0:00:21]} d6 {[%emt 0:01:13]} 6. Be3 {[%emt 0:01:12]} Nf6 {[%emt 0:01:53]} 7. Be2 {[%emt 0:00:20]} Be7 {[%emt 0:01:56]} 8. O-O {[%emt 0:03:07]} O-O {[%emt 0:01:36]} 9. f4 {[%emt 0:00:25]} Qc7 {[%emt 0:01:20]} 10. Qe1 {[%emt 0:04:41]} Nxd4 {[%emt 0:09:27]} 11. Bxd4 {[%emt 0:00:09]} e5 {[%emt 0:01:39]} 12. Be3 {[%emt 0:09:45]} exf4 {[%emt 0:05:36]} 13. Rxf4 {[%emt 0:03:54]} Be6 {[%emt 0:02:29]} 14. Qg3 {[%emt 0:10:38]} Nd7 {[%emt 0:05:28]} 15. Bg4 {[%emt 0:13:37]} Ne5 {[%emt 0:20:39]} 16. Bf5 {[%emt 0:11:03]} g6 {[%emt 0:11:41]} 17. Bxe6 {[%emt 0:08:29]} fxe6 {[%emt 0:00:14]} 18. Raf1 {[%emt 0:03:42]} Nc4 {[%emt 0:09:28]} 19. Bc1 {[%emt 0:03:56]} Qc5+ {[%emt 0:08:40]} 20. R4f2 {[%emt 0:04:06]} d5 {[%emt 0:04:51]} 21. b3 {[%emt 0:04:44]} Rxf2 {[%emt 0:02:02]} 22. Rxf2 {[%emt 0:00:01]} Nb6 {[%emt 0:03:18]} 23. Qh3 {[%emt 0:04:05]} Qc6 {[%emt 0:04:40]} 24. exd5 {[%emt 0:02:30]} exd5 {[%emt 0:01:36]} 25. Ne2 {[%emt 0:02:18]} Rf8 {[%emt 0:01:18]} 26. Rxf8+ {[%emt 0:02:59]} Bxf8 {[%emt 0:00:11]} 27. Be3 {[%emt 0:00:20]} Bc5 {[%emt 0:00:51]} 28. c3 {[%emt 0:01:31]} Bxe3+ {[%emt 0:00:28]} 29. Qxe3 {[%emt 0:00:02]} Nd7 {[%emt 0:00:32]} 30. Qxa7 {[%emt 0:01:05]} Qb6+ {[%emt 0:00:31]} 31. Qxb6 {[%emt 0:00:04]} Nxb6 {[%emt 0:00:03]} 32. Kf2 {[%emt 0:00:16]} Kf7 {[%emt 0:00:11]} 33. Ke3 {[%emt 0:00:13]} Ke6 {[%emt 0:00:24]} 34. Nf4+ {[%emt 0:01:05]} Ke5 {[%emt 0:00:50]} 35. Nd3+ {[%emt 0:00:37]} Kd6 {[%emt 0:00:26]} 36. Kd4 {[%emt 0:00:12]} Nd7 {[%emt 0:00:42]} 37. Nb4 {[%emt 0:00:39]} Nf6 {[%emt 0:00:20]} 38. Nd3 {[%emt 0:02:22]} b6 {[%emt 0:00:53]} 39. a4 {[%emt 0:00:23]} Ne4 {[%emt 0:00:37]} 40. b4 {[%emt 0:00:00]} g5 {[%emt 0:00:00]} 41. c4 {[%emt 0:05:54]} Nf6 {[%emt 0:04:34]} 42. c5+ {[%emt 0:02:09]} bxc5+ {[%emt 0:01:29]} 43. bxc5+ {[%emt 0:00:24]} Kc7 {[%emt 0:00:39]} 44. Nb4 {[%emt 0:00:16]} Ng4 {[%emt 0:00:50]} 45. Nxd5+ {[%emt 0:00:19]} Kb7 {[%emt 0:00:18]} 46. h3 {[%emt 0:00:14]} Nh6 {[%emt 0:00:28]} 47. Nf6 {[%emt 0:01:46]} Nf5+ {[%emt 0:00:25]} 48. Ke4 {[%emt 0:01:30]} Ng3+ {[%emt 0:00:50]} 49. Kd5 {[%emt 0:02:22]} h6 {[%emt 0:01:48]} 50. c6+ {[%emt 0:00:10]} Kc8 {[%emt 0:00:28]} 51. a5 {[%emt 0:00:32]} Nf5 {[%emt 0:00:23]} 52. a6 {[%emt 0:00:49]} Ne7+ {[%emt 0:00:31]} 53. Kd6 {[%emt 0:00:34]} Nf5+ {[%emt 0:00:08]} 54. Kc5 {[%emt 0:01:00]} Kb8 {[%emt 0:00:18]} 55. Kb6 {[%emt 0:03:24]} Nd6 {[%emt 0:00:48]} 56. a7+ {[%emt 0:03:04]} Ka8 {[%emt 0:00:05]} 57. Nd5 {[%emt 0:00:48]} Nc8+ {[%emt 0:01:17]} 58. Kc7 {[%emt 0:00:29]} 1-0

[Event "Polish Youth Ekstraliga 2022"]
[Site "Lublin"]
[Date "2022.06.25"]
[Round "1.7"]
[White "Poltorak, Sebastian"]
[Black "Kutowski, Marcel"]
[Result "1-0"]
[ECO "B23"]
[WhiteElo "2322"]
[BlackElo "1954"]
[Annotator "TA"]
[PlyCount "67"]
[EventDate "2022.06.24"]
[EventType "team-tourn"]
[EventCountry "POL"]
[SourceTitle "playchess.com"]
[Source "ChessBase"]
[SourceQuality "1"]
[TimeControl "40/5400+30:1800+30"]

{[%evp 9,67,14,27,10,24,11,13,9,12,15,12,10,31,-2,8,0,13,21,43,33,45,44,109,96,111,114,99,52,120,89,84,45,44,58,63,0,0,0,0,0,0,0,279,283,269,247,309,316,531,472,708,616,800,671,29974,29975,29975,29974,29988,29989]} 1. e4 {[%emt 0:00:07]} c5 {[%emt 0:00:13]} 2. Nc3 {[%emt 0:00:03]} a6 {[%emt 0:00:04]} 3. g3 {[%emt 0:00:16]} b5 {[%emt 0:02:13]} 4. Bg2 {[%emt 0:00:04]} Bb7 {[%emt 0:00:20]} 5. d3 {[%emt 0:01:12]} d6 {[%emt 0:02:39]} 6. Nh3 {[%emt 0:00:38] B23: Closed Sicilian: Lines without g3.} g6 {[%emt 0:02:56]} 7. O-O {[%emt 0:04:29]} Bg7 {[%emt 0:02:11]} 8. f4 {[%emt 0:01:15] The position is equal.} Nc6 {[%emt 0:04:54] [#]} 9. Ne2 $146 {[%emt 0:11:59]} ({Predecessor:} 9. g4 Nd4 10. Nd5 h5 11. Ne3 hxg4 12. Nxg4 Qd7 13. c3 Nc6 14. Be3 Nf6 15. Ngf2 {1-0 (35) Maze,S (2596)-Tomazini,Z (2439) Caleta 2019}) 9... Nf6 {[%emt 0:08:14]} 10. Nf2 {[%emt 0:04:37]} (10. e5 dxe5 11. fxe5 Ng4 $15) 10... O-O {[%emt 0:05:53]} 11. Be3 {[%emt 0:01:13]} (11. e5 Nd7 $15) 11... e6 {[%emt 0:08:49]} 12. c3 {[%emt 0:08:23]} Qe7 {[%emt 0:04:39]} 13. Qd2 {[%emt 0:04:12]} Rfd8 {[%emt 0:09:03]} 14. g4 {[%emt 0:04:50]} d5 {[%emt 0:09:47] Strongly threatening ...d4.} 15. e5 {[%emt 0:01:03]} d4 {[%emt 0:05:14]} (15... Nd7 $14) 16. exf6 $16 {[%emt 0:03:51]} Bxf6 {[%emt 0:00:41] [#]} 17. Ne4 $1 {[%emt 0:00:20]} dxe3 {[%emt 0:01:17]} 18. Qxe3 {[%emt 0:02:23]} c4 {[%emt 0:03:59]} (18... Na5 $14) 19. Nxf6+ {[%emt 0:01:13]} (19. f5 {is interesting.} Rxd3 20. Qh6 Be5 21. Ng5) 19... Qxf6 {[%emt 0:01:48]} 20. dxc4 {[%emt 0:01:09]} bxc4 {[%emt 0:08:31]} 21. Qb6 $36 {[%emt 0:00:49][%csl LRb7,LRc6][%mdl 2048] White has the initiative.} Rab8 {[%emt 0:00:30][%cal Oc6d4] And now ...Nd4! would win.} 22. g5 {[%emt 0:03:15]} (22. Bxc6 $14 e5 23. fxe5 (23. Qxb7 $2 Rxb7 24. Bxb7 Qb6+ 25. Rf2 Qxb7 $19) 23... Qxc6 24. Qxc6 Bxc6 25. Nd4 Rxb2 26. Nxc6) 22... Qf5 $11 {[%emt 0:05:51][%cal Ob7a8] aiming for ...Ba8!} 23. Bxc6 {[%emt 0:00:08]} Ba8 {[%emt 0:00:38]} 24. Qxa6 {[%emt 0:07:12] Black must now prevent Bxa8.} Qc5+ $1 {[%emt 0:02:54]} 25. Nd4 {[%emt 0:00:13] Threatens to win with Bxa8.} Rd6 $2 {[%emt 0:03:34][%mdl 8192]} (25... Rb6 $11 26. Qa3 Qxa3 27. bxa3 Bxc6) 26. Qxa8 $18 {[%emt 0:02:52]} Rxa8 {[%emt 0:00:04]} 27. Bxa8 {[%emt 0:00:03]} h6 {[%emt 0:00:08]} 28. gxh6 {[%emt 0:01:55]} g5 $2 {[%emt 0:00:40]} (28... Ra6 29. Be4 (29. Bb7 Rb6 $16) 29... Kh7) 29. Kh1 {[%emt 0:03:03]} gxf4 {[%emt 0:00:25]} (29... g4 $142 30. Rg1 f5) 30. Rxf4 {[%emt 0:02:16]} f5 {[%emt 0:02:02]} 31. h7+ {[%emt 0:01:30]} Kxh7 {[%emt 0:01:36]} 32. Rg1 {[%emt 0:00:18][%cal Rf4h4] White mates.} e5 {[%emt 0:00:07]} 33. Rxf5 {[%emt 0:00:28]} Rg6 {[%emt 0:00:55]} 34. Rh5+ {[%emt 0:00:04] Weighted Error Value: White=0.14 (very precise) /Black=0.63} 1-0